fUSD/lending_fUSD_20240105
["ID","MTS","AMOUNT","RATE_DAILY","PERIOD"]
[310320625,1704471205859,-519.5,0.00034794,3]
[310320626,1704471205869,-2046.64,0.00034794,3]
[310320627,1704471205879,-762.26,0.00034794,3]
[310320628,1704471205890,-620.31,0.00034794,3]
[310320629,1704471205901,-1317.65,0.00034794,3]
[310320630,1704471205913,-5333.49,0.00034794,3]
[310320631,1704471205924,-978.21,0.00034794,3]
[310320632,1704471205934,-1254.61,0.00034794,3]
[310320633,1704471205943,-500.0,0.00034794,3]
[310320634,1704471205954,-802.02,0.00034794,3]
[310320635,1704471205963,-1336.26,0.00034794,3]
[310320636,1704471205973,-537.87,0.00034794,3]
[310320637,1704471205983,-3771.03,0.00034794,3]
[310320638,1704471205993,-500.0,0.00034794,3]
[310320639,1704471206002,-525.81,0.00034794,3]
[310320640,1704471206011,-776.01,0.00034794,3]
[310320641,1704471206021,-3060.91,0.00034794,3]
[310320642,1704471206031,-13727.19,0.00034794,3]
[310320643,1704471206041,-1204.63,0.00034794,3]
[310320644,1704471206050,-769.65,0.00034794,3]
[310320645,1704471206060,-537.11,0.00034794,3]
[310320646,1704471206069,-4626.56,0.00034794,3]
[310320647,1704471206079,-1733.54,0.00034794,3]
[310320648,1704471206091,-3709.47,0.00034794,3]
[310320649,1704471206102,-3029.39,0.00034794,3]
[310320650,1704471206112,-9181.09,0.00034794,3]
[310320651,1704471206122,-5426.23,0.00034794,3]
[310320652,1704471206132,-740.27,0.00034794,3]
[310320653,1704471206142,-5834.39,0.00034794,3]
[310320654,1704471206152,-799.71,0.00034794,3]
[310320655,1704471206162,-500.0,0.00034794,3]
[310320656,1704471206171,-725.16,0.00034794,3]
[310320657,1704471206181,-30937.37,0.00034794,3]
[310320658,1704471206191,-821.62,0.00034794,3]
[310320659,1704471206201,-4345.18,0.00034794,3]
[310320660,1704471206211,-749.5,0.00034794,3]
[310320661,1704471206220,-675.77,0.00034794,3]
[310320662,1704471206230,-900.8,0.00034794,3]
[310320663,1704471206240,-500.0,0.00034794,3]
[310320664,1704471206250,-1420.61,0.00034794,3]
[310320665,1704471206259,-1182.33,0.00034794,3]
[310320666,1704471206269,-605.12,0.00034794,3]
[310320667,1704471206278,-809.12,0.00034794,3]
[310320668,1704471206288,-699.84,0.00034794,3]
[310320669,1704471206298,-500.0,0.00034794,3]
[310320670,1704471206310,-3777.28,0.00034794,3]
[310320671,1704471206321,-571.4,0.00034794,3]
[310320672,1704471206333,-1058.15,0.00034794,3]
[310320673,1704471206344,-830.16,0.00034794,3]
[310320674,1704471206354,-2249.97,0.00034794,3]
[310320675,1704471206364,-1921.66,0.00034794,3]
[310320676,1704471206374,-1277.02,0.00034794,3]
[310320677,1704471206384,-2596.11,0.00034794,3]
[310320678,1704471206394,-1078.96,0.00034794,3]
[310320679,1704471206404,-652.62,0.00034794,3]
[310320680,1704471206414,-915.92,0.00034794,3]
[310320681,1704471206425,-500.0,0.00034794,3]
[310320682,1704471206434,-582.86,0.00034794,3]
[310320683,1704471206444,-1916.84,0.00034794,3]
[310320684,1704471206454,-790.64,0.00034794,3]
[310320685,1704471206463,-500.0,0.00034794,3]
[310320686,1704471206473,-3952.46,0.00034794,3]
[310320687,1704471206484,-4595.39,0.00034794,3]
[310320688,1704471206494,-500.0,0.00034794,3]
[310320689,1704471206503,-756.94,0.00034794,3]
[310320690,1704471206513,-1252.88,0.00034794,3]
[310320691,1704471206523,-426.44141674,0.00034794,3]
[310320692,1704471206533,-717.12,0.00034794,3]
[310320693,1704471206543,-964.19,0.00034794,3]
[310320694,1704471206553,-1622.29,0.00034794,3]
[310320695,1704471206562,-6081.11,0.00034794,3]
[310320696,1704471206571,-1254.57,0.00034794,3]
[310320697,1704471206581,-1984.28,0.00034794,3]
[310320698,1704471206591,-2229.13,0.00034794,3]
[310320699,1704471206601,-500.0,0.00034794,3]
[310320700,1704471206610,-511.35,0.00034794,3]
[310320701,1704471206620,-629.9,0.00034794,3]
[310320702,1704471206629,-529.0,0.00034794,3]
[310320703,1704471206639,-839.46,0.00034794,3]
[310320704,1704471206649,-1375.91,0.00034794,3]
[310320705,1704471206659,-730.24,0.00034794,3]
[310320706,1704471206668,-1622.69,0.00034794,3]
[310320707,1704471206678,-11940.29,0.00034794,3]
[310320708,1704471206687,-5893.72,0.00034794,3]
[310320709,1704471206697,-2605.01,0.00034794,3]
[310320710,1704471206706,-1045.96,0.00034794,3]
[310320711,1704471206716,-500.0,0.00034794,3]
[310320712,1704471206726,-7863.2,0.00034794,3]
[310320713,1704471206736,-713.7,0.00034794,3]
[310320714,1704471206748,-608.68,0.00034794,3]
[310320715,1704471206758,-381.78,0.00034794,3]
[310320716,1704471206768,-2294.09,0.00034794,3]
[310320717,1704471206778,-543.11,0.00034794,3]
[310320718,1704471206787,-3601.71,0.00034794,3]
[310320719,1704471206806,-500.0,0.00034794,3]
[310320720,1704471206816,-647.48,0.00034794,3]
[310320721,1704471206825,-1603.38,0.00034794,3]
[310320722,1704471206835,-500.0,0.00034794,3]
[310320723,1704471206844,-1192.53,0.00034794,3]
[310320724,1704471206854,-618.49,0.00034794,3]
[310320725,1704471206863,-2938.06,0.00034794,3]
[310320726,1704471206873,-1744.78,0.00034794,3]
[310320727,1704471206882,-666.36,0.00034794,3]
[310320728,1704471206891,-770.23,0.00034794,3]
[310320729,1704471206901,-2064.43,0.00034794,3]
[310320730,1704471206910,-5976.75,0.00034794,3]
[310320731,1704471206919,-526.45,0.00034794,3]
[310320732,1704471206929,-554.78,0.00034794,3]
[310320733,1704471206938,-770.2,0.00034794,3]
[310320734,1704471206947,-5218.54,0.00034794,3]
[310320735,1704471206957,-500.0,0.00034794,3]
[310320736,1704471206967,-650.01,0.00034794,3]
[310320737,1704471206976,-1624.24,0.00034794,3]
[310320738,1704471206986,-657.7,0.00034794,3]
[310320739,1704471206995,-500.0,0.00034794,3]
[310320740,1704471207005,-2564.8,0.00034794,3]
[310320741,1704471207015,-912.23,0.00034794,3]
[310320742,1704471207024,-733.59,0.00034794,3]
[310320743,1704471207034,-701.65,0.00034794,3]
[310320744,1704471207043,-788.16,0.00034794,3]
[310320745,1704471207053,-1151.0,0.00034794,3]
[310320746,1704471207064,-500.0,0.00034794,3]
[310320747,1704471207073,-1833.74,0.00034794,3]
[310320748,1704471207084,-1365.11,0.00034794,3]
[310320749,1704471207094,-1286.65,0.00034794,3]
[310320750,1704471207104,-1004.41,0.00034794,3]
[310320751,1704471207114,-1188.06,0.00034794,3]
[310320752,1704471207123,-500.0,0.00034794,3]
[310320753,1704471207133,-500.0,0.00034794,3]
[310320754,1704471207140,-500.0,0.00034794,3]
[310320755,1704471207148,-889.44,0.00034794,3]
[310320756,1704471207158,-718.53,0.00034794,3]
[310320757,1704471207167,-799.46,0.00034794,3]
[310320758,1704471207177,-2168.33,0.00034794,3]
[310320759,1704471207187,-1229.01,0.00034794,3]
[310320760,1704471207197,-1007.17,0.00034794,3]
[310320761,1704471207207,-1440.65,0.00034794,3]
[310320762,1704471207217,-1492.25,0.00034794,3]
[310320763,1704471207227,-1310.28,0.00034794,3]
[310320764,1704471207237,-1033.01,0.00034794,3]
[310320765,1704471207246,-8762.76,0.00034794,3]
[310320766,1704471207256,-1037.25,0.00034794,3]
[310320767,1704471207266,-1254.6,0.00034794,3]
[310320768,1704471207277,-1235.07,0.00034794,3]
[310320769,1704471207287,-1231.65,0.00034794,3]
[310320770,1704471207297,-721.62,0.00034794,3]
[310320771,1704471207308,-2988.81,0.00034794,3]
[310320772,1704471207317,-1078.8,0.00034794,3]
[310320773,1704471207327,-526.61241191,0.00034794,3]
[310320774,1704471207337,-8593.4,0.00034794,3]
[310320775,1704471207347,-1175.89,0.00034794,3]
[310320776,1704471207356,-858.78,0.00034794,3]
[310320777,1704471207366,-508.85,0.00034794,3]
[310320778,1704471207375,-775.55,0.00034794,3]
[310320779,1704471207385,-13181.47,0.00034794,3]
[310320780,1704471207394,-2255.28,0.00034794,3]
[310320781,1704471207404,-1023.39,0.00034794,3]
[310320782,1704471207413,-1387.79,0.00034794,3]
[310320783,1704471207423,-507.25,0.00034794,3]
[310320784,1704471207433,-500.0,0.00034794,3]
[310320785,1704471207442,-615.53,0.00034794,3]
[310320786,1704471207451,-2939.6,0.00034794,3]
[310320787,1704471207461,-500.0,0.00034794,3]
[310320788,1704471207470,-500.0,0.00034794,3]
[310320789,1704471207479,-534.68,0.00034794,3]
[310320790,1704471207489,-871.56,0.00034794,3]
[310320791,1704471207499,-735.74,0.00034794,3]
[310320792,1704471207508,-1299.1,0.00034794,3]
[310320793,1704471207518,-1104.41,0.00034794,3]
[310320794,1704471207527,-1102.46,0.00034794,3]
[310320795,1704471207536,-875.24,0.00034794,3]
[310320796,1704471207545,-2232.74,0.00034794,3]
[310320797,1704471207555,-924.65,0.00034794,3]
[310320798,1704471207565,-815.75,0.00034794,3]
[310320799,1704471207574,-34634.26221659,0.000348,2]
[310320800,1704471207585,-1543828.98617946,0.000348,6]
[310320801,1704471207594,-150.0,0.000348,23]
[310320802,1704471207604,-596.755,0.000348,2]
[310320803,1704471207614,-596.755,0.000348,2]
[310320804,1704471207623,-604.5,0.000348,2]
[310320805,1704471207633,-604.5,0.000348,2]
[310320806,1704471207642,-849.2187,0.000348,2]
[310320807,1704471207652,-849.2187,0.000348,2]
[310320808,1704471207661,-456.40105,0.00034888,2]
[310320809,1704471207671,-9379.11446157,0.000349,2]
[310320810,1704471207680,-102673.55205463,0.000349,2]
[310320811,1704471207690,-500.0,0.000349,2]
[310320812,1704471207699,-500.0,0.000349,2]
[310320813,1704471207708,-500.0,0.000349,2]
[310320814,1704471207718,-500.0,0.000349,2]
[310320815,1704471207728,-500.0,0.000349,2]
[310320816,1704471207737,-500.0,0.000349,2]
[310320817,1704471207747,-500.0,0.000349,2]
[310320818,1704471207757,-500.0,0.000349,2]
[310320819,1704471207767,-500.0,0.000349,2]
[310320820,1704471207776,-500.0,0.000349,2]
[310320821,1704471207786,-500.0,0.000349,2]
[310320822,1704471207795,-500.0,0.000349,2]
[310320823,1704471207805,-500.0,0.000349,2]
[310320824,1704471207815,-500.0,0.000349,2]
[310320825,1704471207825,-500.0,0.000349,2]
[310320826,1704471207838,-500.0,0.000349,2]
[310320827,1704471207848,-500.0,0.000349,2]
[310320828,1704471207859,-500.0,0.000349,2]
[310320829,1704471207868,-500.0,0.000349,2]
[310320830,1704471207879,-500.0,0.000349,2]
[310320831,1704471207889,-500.0,0.000349,2]
[310320832,1704471207898,-500.0,0.000349,2]
[310320833,1704471207908,-500.0,0.000349,2]
[310320834,1704471207917,-500.0,0.000349,2]
[310320835,1704471207927,-500.0,0.000349,2]
[310320836,1704471207936,-500.0,0.000349,2]
[310320837,1704471207945,-500.0,0.000349,2]
[310320838,1704471207954,-500.0,0.000349,2]
[310320839,1704471207963,-500.0,0.000349,2]
[310320840,1704471207973,-500.0,0.000349,2]
[310320841,1704471207982,-616.79274849,0.000349,2]
[310320842,1704471207992,-500.0,0.000349,2]
[310320843,1704471208001,-500.0,0.000349,2]
[310320844,1704471208010,-500.0,0.000349,2]
[310320845,1704471208019,-500.0,0.000349,2]
[310320846,1704471208029,-500.0,0.000349,2]
[310320847,1704471208038,-500.0,0.000349,2]
[310320848,1704471208048,-500.0,0.000349,2]
[310320849,1704471208058,-500.0,0.000349,2]
[310320850,1704471208067,-500.0,0.000349,2]
[310320851,1704471208077,-500.0,0.000349,2]
[310320852,1704471208090,-500.0,0.000349,2]
[310320853,1704471208100,-500.0,0.000349,2]
[310320854,1704471208109,-500.0,0.000349,2]
[310320855,1704471208118,-500.0,0.000349,2]
[310320856,1704471208128,-500.0,0.000349,2]
[310320857,1704471208137,-500.0,0.000349,2]
[310320858,1704471208147,-500.0,0.000349,2]
[310320859,1704471208156,-500.0,0.000349,2]
[310320860,1704471208169,-500.0,0.000349,2]
[310320861,1704471208178,-500.0,0.000349,2]
[310320862,1704471208187,-500.0,0.000349,2]
[310320863,1704471208197,-500.0,0.000349,2]
[310320864,1704471208206,-500.0,0.000349,2]
[310320865,1704471208216,-500.0,0.000349,2]
[310320866,1704471208225,-500.0,0.000349,2]
[310320867,1704471208234,-500.0,0.000349,2]
[310320868,1704471208243,-500.0,0.000349,2]
[310320869,1704471208251,-500.0,0.000349,2]
[310320870,1704471208260,-500.0,0.000349,2]
[310320871,1704471208269,-500.0,0.000349,2]
[310320872,1704471208278,-500.0,0.000349,2]
[310320873,1704471208287,-409.65180204,0.000349,2]
[310320874,1704471208296,-145895.56038023,0.000349,2]
[310320875,1704471208306,-803257.59420208,0.000349,2]
[310320876,1704471208314,-135806.26367004,0.000349,2]
[310320877,1704471208324,-296220.42981618,0.000349,2]
[310320878,1704471208334,-1131753.2688936,0.000349,6]
[310320879,1704471211263,-749.87,0.00025,2]
[310320880,1704471211273,-150.0,0.00028494,2]
[310320881,1704471211282,-150.0,0.00028646,2]
[310320882,1704471211292,-150.0,0.00028669,2]
[310320883,1704471211301,-150.0,0.00028766,2]
[310320884,1704471211311,-151.0,0.00029,7]
[310320885,1704471211321,-150.0,0.00029066,2]
[310320886,1704471211330,-150.0,0.00029224,2]
[310320887,1704471211341,-150.0,0.00029286,2]
[310320888,1704471211351,-150.0,0.00029404,2]
[310320889,1704471211360,-150.0,0.00029656,2]
[310320890,1704471211369,-150.0,0.00029959,2]
[310320891,1704471211379,-151.0,0.0003,7]
[310320892,1704471211389,-249.62581,0.0003,7]
[310320893,1704471211399,-497.66029238,0.00030136,2]
[310320894,1704471211409,-500.0,0.00030136,2]
[310320895,1704471211419,-569.04,0.00030136,2]
[310320896,1704471211428,-1262.7,0.00030136,2]
[310320897,1704471211439,-324.21989761,0.0003041,2]
[310320898,1704471211479,-500.0,0.00030136,2]
[310320899,1704471211490,-175.78010239,0.0003041,2]
[310320900,1704471211499,-500.0,0.0003041,2]
[310320901,1704471211511,-755.45,0.0003041,2]
[310320902,1704471211521,-500.0,0.0003041,2]
[310320903,1704471211531,-569.04,0.0003041,2]
[310320904,1704471211541,-500.0,0.00030684,2]
[310320905,1704471211551,-500.0,0.00030684,2]
[310320906,1704471211562,-500.0,0.00030684,2]
[310320907,1704471211572,-755.45,0.00030684,2]
[310320908,1704471211582,-500.0,0.00030684,2]
[310320909,1704471211591,-569.04,0.00030684,2]
[310320910,1704471211601,-500.0,0.00030958,2]
[310320911,1704471211611,-210.18008761,0.00030958,2]
[310320912,1704471211626,-289.81991239,0.00030958,2]
[310320913,1704471211635,-500.0,0.00030958,2]
[310320914,1704471211649,-755.45,0.00030958,2]
[310320915,1704471211659,-500.0,0.00030958,2]
[310320916,1704471211670,-569.04,0.00030958,2]
[310320917,1704471211680,-500.0,0.00031232,2]
[310320918,1704471211691,-519.54791571,0.00031232,2]
[310320919,1704471211701,-500.0,0.00031232,2]
[310320920,1704471211710,-755.45,0.00031232,2]
[310320921,1704471211720,-417.94696608,0.00031506,2]
[310320922,1704471211731,-500.0,0.00031506,2]
[310320923,1704471211740,-1341.18,0.00032054,2]
[310320924,1704471211751,-1341.18,0.00032328,2]
[310320925,1704471211761,-1341.18,0.00032602,2]
[310320926,1704471211771,-1341.18,0.00032876,2]
[310320927,1704471211781,-1341.18,0.0003315,3]
[310320928,1704471211792,-1341.18,0.00033424,3]
[310320929,1704471211802,-500.0,0.00033698,3]
[310320930,1704471211812,-500.0,0.00033972,3]
[310320931,1704471211824,-500.0,0.00034246,3]
[310320932,1704471211835,-356.46641319,0.0003452,3]
[310320933,1704471212372,-650.0,0.00022999,2]
[310320934,1704471212398,-197.0,0.00022999,2]
[310320935,1704471212409,-155.0,0.00022999,2]
[310320936,1704471212419,-157.15051088,0.00022999,2]
[310320937,1704471212429,-9292.93639301,0.0002492,2]
[310320938,1704471212440,-500.0,0.00030136,2]
[310320939,1704471212452,-500.0,0.00030136,2]
[310320940,1704471212463,-578.89360308,0.00030136,2]
[310320941,1704471212474,-786.65,0.00030136,2]
[310320942,1704471212485,-500.0,0.0003041,2]
[310320943,1704471212495,-1262.7,0.0003041,2]
[310320944,1704471212505,-625.1601323,0.0003041,2]
[310320945,1704471212514,-500.0,0.0003041,2]
[310320946,1704471212524,-295.44992073,0.0003041,2]
[310320947,1704471212544,-491.20007927,0.0003041,2]
[310320948,1704471212554,-130.02584585,0.00030684,2]
[310320949,1704471432399,2700.845,0.00025,10]
[310320951,1704471952742,167.66616628,0.0002,2]
[310320982,1704472114929,174.73,0.0002085,2]
[310321009,1704472222078,283.42004374,0.0002085,2]
[310321010,1704472224934,282.37401869,0.0002085,2]
[310321012,1704472228501,542.92826208,0.0002085,2]
[310321013,1704472228631,987.62898229,0.0002085,2]
[310321019,1704472232053,7403.93401596,0.0002085,2]
[310321020,1704472232068,-155.0,0.00022692,2]
[310321021,1704472232079,-155.0,0.00022693,2]
[310321022,1704472232089,-170.59147513,0.00022701,2]
[310321023,1704472232099,-2265.06059582,0.00022767,2]
[310321024,1704472232109,-1907.900048,0.00022768,2]
[310321025,1704472232119,-158.08945216,0.000229,2]
[310321026,1704472232129,-1250.0,0.00023,3]
[310321027,1704472232139,-259.23,0.00023,2]
[310321028,1704472232149,-499.99,0.00024,2]
[310321029,1704472232159,-174.42307069,0.00024,3]
[310321030,1704472232169,-14783.07618885,0.00024,2]
[310321031,1704472232180,-401.35063277,0.0002425,2]
[310321032,1704472232189,-231.44,0.00024552,2]
[310321033,1704472232200,-157.15051088,0.00024919,2]
[310321034,1704472232210,-1300.0,0.00025,3]
[310321035,1704472232220,-212.54926199,0.00025,2]
[310321036,1704472232230,-256.17699843,0.00025,2]
[310321037,1704472232240,-1015.71198052,0.00025593,2]
[310321038,1704472232250,-9292.93639301,0.00025594,2]
[310321039,1704472232260,-800.0,0.00025767,2]
[310321040,1704472232270,-2542.78,0.00025786,2]
[310321041,1704472232280,-9292.93639301,0.00026268,2]
[310321042,1704472232291,-1579.349333,0.00026422,2]
[310321043,1704472232301,-150.0,0.00026424,2]
[310321044,1704472232311,-150.0,0.00026431,2]
[310321045,1704472232322,-4919.18,0.00026436,2]
[310321046,1704472232334,-196.14,0.00026441,2]
[310321047,1704472232344,-231.44,0.00026816,2]
[310321048,1704472232354,-301.629,0.00026916,2]
[310321049,1704472232364,-2896.0,0.00026916,2]
[310321050,1704472232374,-2266.0,0.00026916,2]
[310321051,1704472232384,-1026.0,0.00026916,2]
[310321052,1704472232396,-9292.93639301,0.00026941,2]
[310321053,1704472232407,-222.8434334,0.00027,2]
[310321054,1704472232417,-1350.0,0.00027,3]
[310321099,1704472232834,-1000.0,0.0002709,2]
[310321101,1704472232844,-167.02,0.00027162,2]
[310321103,1704472232854,-155.0,0.00027397,2]
[310321105,1704472232863,-250.0,0.00027397,2]
[310321107,1704472232873,-250.0,0.000274,2]
[310321109,1704472232882,-196.14,0.0002742,2]
[310321111,1704472232892,-250.0,0.00027424,2]
[310321113,1704472232902,-9292.93639301,0.00027615,2]
[310321115,1704472232912,-158.64,0.00027699,2]
[310321117,1704472232922,-1199.68,0.00027945,2]
[310321119,1704472232931,-11648.7,0.00027945,2]
[310321121,1704472232941,-9292.93639301,0.00028289,2]
[310321123,1704472232952,-196.14,0.00028398,2]
[310321126,1704472232961,-521.69660047,0.00028416,4]
[310321128,1704472232971,-730.08,0.00028426,2]
[310321130,1704472232980,-800.0,0.00028718,5]
[310321132,1704472232989,-157.40802707,0.00028767,2]
[310321134,1704472232998,-946.90812621,0.000289,2]
[310321136,1704472233008,-370.88646988,0.000289,2]
[310321138,1704472233017,-9292.93639301,0.00028963,2]
[310321140,1704472233026,-650.0,0.00028996,2]
[310321142,1704472233036,-2236.48368061,0.00028996,2]
[310321144,1704472233046,-155.0,0.00028996,2]
[310321146,1704472233055,-203.38797162,0.00028997,6]
[310321148,1704472233064,-743.48,0.00028997,2]
[310321150,1704472233074,-743.48,0.00028997,2]
[310321152,1704472233083,-743.48,0.00028997,2]
[310321154,1704472233093,-743.48,0.00028997,2]
[310321156,1704472233102,-743.48,0.00028997,2]
[310321158,1704472233110,-743.48,0.00028997,2]
[310321160,1704472233120,-743.48,0.00028997,2]
[310321162,1704472233130,-743.48,0.00028997,2]
[310321164,1704472233140,-743.48,0.00028997,2]
[310321166,1704472233149,-743.48,0.00028997,2]
[310321168,1704472233158,-764.0,0.00028998,5]
[310321170,1704472233167,-201.50812814,0.00028998,6]
[310321172,1704472233177,-248.49632645,0.00028998,6]
[310321174,1704472233186,-453994.8186335,0.00028998,2]
[310321176,1704472233199,-3843.332142,0.00028998,2]
[310321178,1704472233212,-1821.00427086,0.00028998,2]
[310321181,1704472233224,-568.68908679,0.00028998,2]
[310321183,1704472233239,-1265.48923181,0.00028998,2]
[310321186,1704472233255,-250.0,0.00028998,2]
[310321190,1704472233281,-3034.43,0.00028998,2]
[310321192,1704472233294,-8603.6,0.00028998,2]
[310321196,1704472233324,-304.0,0.00026916,2]
[310321213,1704472234011,1020.14806453,0.0002085,2]
[310321214,1704472234113,697.07756653,0.0002085,2]
[310321215,1704472234820,312.89687242,0.0002085,2]
[310321216,1704472234964,254.81984417,0.0002085,2]
[310321217,1704472235079,291.28624859,0.0002085,2]
[310321219,1704472235296,500.0,0.0002085,2]
[310321220,1704472235385,6066.31265179,0.0002085,2]
[310321221,1704472236538,18914.29766501,0.0002085,2]
[310321238,1704472238089,-639.0,0.00026916,2]
[310321240,1704472238099,-550.56,0.00027481,2]
[310321241,1704472238108,-2160.18534686,0.00028998,2]
[310321242,1704472238119,-578914.19288253,0.00028998,2]
[310321252,1704472238325,-834.87280297,0.00028998,2]
[310321253,1704472238462,-492.67016026,0.00028998,2]
[310321254,1704472238530,-1126.46725379,0.00028998,2]
[310321359,1704472239631,520.00185062,0.0002085,2]
[310321467,1704472240619,155.24382208,0.0002085,2]
[310321473,1704472240673,-1234.0,0.00026701,2]
[310321475,1704472240682,-433.17524773,0.00028998,5]
[310321478,1704472240694,-260.82475227,0.00028998,5]
[310321480,1704472240704,-3184.28899763,0.00028998,2]
[310321552,1704472241480,-473.40238774,0.00028997,2]
[310321622,1704472242496,541.49668205,0.0002085,2]
[310321624,1704472242919,282.37401869,0.0002085,2]
[310321636,1704472243168,-220.35,0.00023,2]
[310321637,1704472243178,-1586.33929995,0.00028997,2]
[310321638,1704472243187,-4307.54490005,0.00028998,2]
[310321639,1704472243199,-319.45615339,0.00028998,2]
[310321640,1704472243225,-4490.19999992,0.00028998,2]
[310321641,1704472243237,-14746.34780139,0.00028998,2]
[310321642,1704472243289,-738.63694524,0.00028998,2]
[310321647,1704472244457,608.0657442,0.00021,2]
[310321658,1704472246103,-1174.57417902,0.00028997,2]
[310321659,1704472246113,-117.71943479,0.00028997,2]
[310321660,1704472246125,-37.28056521,0.00028997,2]
[310321661,1704472246134,-758.2045934,0.00028998,2]
[310321662,1704472246146,-867.18,0.00028998,2]
[310321664,1704472246396,-8695.4744755,0.00028998,2]
[310321665,1704472246451,-270.03511888,0.00028997,2]
[310321666,1704472246463,-4714.96487112,0.00028998,2]
[310321667,1704472246475,-93960.01899381,0.00028998,2]
[310321670,1704472249307,401.16267658,0.00020225,2]
[310321680,1704472829103,-500.11320425,0.000227,2]
[310321681,1704472829458,-155.0,0.00022701,2]
[310321682,1704472829488,-361.21355909,0.00022702,2]
[310321683,1704472829508,-563.0,0.00022702,2]
[310321684,1704472829532,-152.00338313,0.00022707,2]
[310321685,1704472829553,-1753.93539203,0.00022707,2]
[310321686,1704472829575,-3901.7344615,0.00022806,2]
[310321687,1704472846952,-721.34515232,0.00022806,2]
[310321688,1704472846974,-500.0,0.00022816,2]
[310321689,1704472847001,-800.0,0.00022816,2]
[310321690,1704472847022,-232.48,0.00023,2]
[310321691,1704472847044,-0.17484768,0.00023,2]
[310321692,1704472861559,-931.0,0.00023,2]
[310321693,1704472874390,-0.44311521,0.00023,2]
[310321694,1704472874410,-197.55688479,0.00023,2]
[310321749,1704473432713,-159.26993244,0.00022992,2]
[310321751,1704473432723,-1910.5767352,0.00022992,2]
[310321754,1704473432733,-500.11320425,0.00022993,2]
[310321757,1704473432743,-1250.0,0.00023,3]
[310321760,1704473432752,-167.98,0.00023,2]
[310321763,1704473432762,-277.67,0.00025072,2]
[310321766,1704473432772,-152.00338307,0.00025135,2]
[310321769,1704473432782,-208.0,0.0002521,2]
[310321772,1704473432791,-282.0,0.0002521,2]
[310321775,1704473432800,-208.0,0.0002593,2]
[310321778,1704473432809,-282.0,0.0002593,2]
[310321781,1704473432819,-152.00338307,0.00025952,2]
[310321783,1704473432829,-499.99,0.00025952,2]
[310321785,1704473432839,-208.0,0.0002664,2]
[310321787,1704473432850,-282.0,0.0002664,2]
[310321788,1704473432863,-414.88648268,0.000267,2]
[310321789,1704473432873,-152.00338307,0.00026769,2]
[310321790,1704473432882,-250.0,0.00026905,2]
[310321791,1704473432893,-1000.0,0.00026998,2]
[310321792,1704473432902,-335.2,0.00027036,2]
[310321793,1704473432912,-184.78,0.00027073,2]
[310321794,1704473432926,-406.39,0.00027073,2]
[310321795,1704473432936,-150.0,0.00027073,2]
[310321796,1704473432946,-500.0,0.00027073,2]
[310321797,1704473432955,-3032.23,0.00027144,2]
[310321798,1704473432966,-250.0,0.0002715,2]
[310321799,1704473432976,-150.0,0.00027168,2]
[310321800,1704473432985,-184.78,0.00027216,2]
[310321801,1704473432995,-277.67,0.00027336,2]
[310321802,1704473433005,-184.78,0.00027358,2]